[Event "POL-chT 2nd League Juniors 2020"]
[Site "Sypniewo"]
[Date "2020.10.30"]
[Round "9.5"]
[White "Hertlein, Irena"]
[Black "Jedrzejko, Martyna"]
[Result "1/2-1/2"]
[ECO "D02"]
[WhiteElo "1893"]
[BlackElo "1618"]
[Annotator "NA RC"]
[PlyCount "71"]
[EventDate "2020.10.23"]
[EventType "team-tourn"]
[EventCountry "POL"]
[SourceTitle "playchess.com"]
[Source "ChessBase"]
[SourceQuality "1"]
[TimeControl "5400+30"]

{[%evp 8,71,24,26,29,2,45,42,44,43,45,53,39,44,46,52,45,54,39,31,30,16,43,46,41,19,18,16,9,10,53,19,59,8,56,0,48,0,0,0,0,-35,-33,-34,-39,-82,-78,-78,0,0,0,0,0,0,0,0,0,0,0,0,0,0,0,0,0,0]} 1. d4 {[%emt 0:00:00]} d5 {[%emt 0:00:00]} 2. Nf3 {[%emt 0:00:00]} Nf6 {[%emt 0:00:12]} 3. c4 {[%emt 0:00:24]} c6 {[%emt 0:00:10]} 4. Qc2 {[%emt 0:00:29]} e6 {[%emt 0:03:24]} 5. g3 {[%emt 0:00:16]} Bb4+ {[%emt 0:04:10]} 6. Bd2 {[%emt 0:01:09]} Bxd2+ {[%emt 0:00:29] D30: Queen's Gambit Declined: Systems without Nc3.} 7. Nbxd2 {[%emt 0:00:09]} O-O {[%emt 0:01:03]} 8. Bg2 {[%emt 0:00:18]} Nbd7 {[%emt 0:00:50]} 9. O-O {[%emt 0:00:36]} b6 {[%emt 0:05:12]} 10. e4 {[%emt 0:13:51]} dxe4 {[%emt 0:04:36]} 11. Nxe4 {[%emt 0:05:09]} Nxe4 {[%emt 0:00:36]} 12. Qxe4 {[%emt 0:00:08]} Bb7 {[%emt 0:02:07]} 13. Ne5 {[%emt 0:04:07]} Nxe5 {[%emt 0:01:28]} 14. dxe5 {[%emt 0:00:50]} Qe7 {[%emt 0:01:22]} 15. Rfd1 {[%emt 0:04:28] [#]} Rfd8 $146 {[%emt 0:01:28]} ({Predecessor:} 15... Rad8 16. Bf3 h6 17. a3 Ba8 18. Qe3 Bb7 19. b4 Kh8 20. c5 bxc5 21. bxc5 Rxd1+ 22. Rxd1 {1-0 (34) Koo,W (1826)-Abdul Rahman,S (1615) Shah Alam 2016}) 16. Qf4 {[%emt 0:06:40]} c5 {[%emt 0:06:59]} 17. Rd6 {[%emt 0:01:56]} Bxg2 {[%emt 0:01:34]} 18. Kxg2 {[%emt 0:00:13]} Rxd6 {[%emt 0:09:01]} 19. exd6 {[%emt 0:00:01]} Qd7 {[%emt 0:00:18]} 20. Rd1 {[%emt 0:06:20]} Rd8 {[%emt 0:00:53]} 21. a3 {[%emt 0:03:07]} h6 {[%emt 0:03:46]} 22. b4 {[%emt 0:02:22]} Qc6+ {[%emt 0:02:29]} 23. Kg1 {[%emt 0:01:37]} Qa4 {[%emt 0:00:46]} 24. Qd2 {[%emt 0:21:16]} Qxa3 {[%emt 0:07:28]} 25. b5 {[%emt 0:00:32]} a6 {[%emt 0:05:13]} 26. d7 {[%emt 0:06:42]} axb5 {[%emt 0:00:32]} 27. Qd6 {[%emt 0:00:21]} Qa7 {[%emt 0:01:26]} (27... bxc4 $17 28. Qxb6 Qa8) 28. cxb5 {[%emt 0:00:48]} Qa4 {[%emt 0:12:01]} 29. h4 {[%emt 0:05:12]} Kh7 {[%emt 0:14:00]} 30. Kh2 {[%emt 0:09:42]} c4 {[%emt 0:07:52]} 31. Qxb6 {[%emt 0:02:38]} Qxd1 {[%emt 0:00:08]} 32. Qxd8 {[%emt 0:00:04]} Qd2 {[%emt 0:03:14]} 33. Kg2 {[%emt 0:02:35]} Qd5+ {[%emt 0:00:20]} 34. Kh2 {[%emt 0:01:28]} Qd2 {[%emt 0:00:05]} 35. Kg2 {[%emt 0:00:27]} Qd5+ {[%emt 0:00:08]} 36. Kh2 $11 {[%emt 0:00:51]} 1/2-1/2

[Event "POL-chT 2nd League Juniors 2020"]
[Site "Sypniewo"]
[Date "2020.10.30"]
[Round "9.5"]
[White "Filipska, Maja"]
[Black "Lascar, Maria Elena"]
[Result "1-0"]
[ECO "B40"]
[WhiteElo "1849"]
[BlackElo "1552"]
[Annotator "NA RC"]
[PlyCount "59"]
[EventDate "2020.10.23"]
[EventType "team-tourn"]
[EventCountry "POL"]
[SourceTitle "playchess.com"]
[Source "ChessBase"]
[SourceQuality "1"]
[TimeControl "5400+30"]

{[%evp 9,59,12,61,64,91,35,36,48,48,46,50,8,37,22,31,17,58,27,67,67,71,62,66,41,37,39,109,111,110,110,121,114,115,113,110,108,118,105,121,116,111,105,133,59,65,71,122,91,122,123,695,763]} 1. e4 {[%emt 0:00:00]} c5 {[%emt 0:00:00]} 2. Nf3 {[%emt 0:00:00]} e6 {[%emt 0:00:00]} 3. d4 {[%emt 0:00:00]} cxd4 {[%emt 0:00:02]} 4. Nxd4 {[%emt 0:00:00]} Nf6 {[%emt 0:00:10]} 5. Nc3 {[%emt 0:00:09]} Qb6 {[%emt 0:00:22]} 6. e5 {[%emt 0:03:00]} Bc5 {[%emt 0:01:53]} 7. Be3 {[%emt 0:08:07]} ({Much worse is} 7. exf6 $6 Bxd4 8. fxg7 Bxf2+ 9. Ke2 Rg8 $11) (7. Ndb5 $16 Nd5 8. Ne4 (8. Nxd5 exd5 9. Qxd5 Bxf2+ 10. Kd1 O-O $14)) 7... Nd5 $1 {[%emt 0:07:06] B40: Sicilian: 2...e6, Unusual lines.} 8. Nxd5 $1 {[%emt 0:00:46]} exd5 {[%emt 0:00:07]} 9. c3 {[%emt 0:07:52]} Nc6 {[%emt 0:11:48]} 10. Be2 {[%emt 0:06:34]} Nxd4 {[%emt 0:03:55] [#]} 11. cxd4 $146 {[%emt 0:07:15]} ({Predecessor:} 11. Bxd4 Bxd4 12. cxd4 d6 13. O-O O-O 14. b3 dxe5 15. dxe5 Rd8 16. Qd2 Bf5 17. Rad1 {0-1 (48) Van't Hof,G-Myatt,J LSS email 2007}) 11... Bb4+ {[%emt 0:00:16]} 12. Kf1 {[%emt 0:00:01]} O-O {[%emt 0:01:42]} 13. Qb3 {[%emt 0:00:37]} Ba5 {[%emt 0:16:25]} 14. Bf3 {[%emt 0:12:23]} Qa6+ {[%emt 0:01:31]} 15. Kg1 {[%emt 0:00:09]} d6 {[%emt 0:02:19]} 16. exd6 {[%emt 0:04:32]} Qxd6 {[%emt 0:00:26]} 17. Qxd5 {[%emt 0:00:45]} Bc7 {[%emt 0:02:45]} ({Black should play} 17... Qxd5 $14 18. Bxd5 Rd8) 18. Qxd6 {[%emt 0:00:47]} Bxd6 {[%emt 0:00:10]} 19. g3 {[%emt 0:02:05]} Rb8 {[%emt 0:03:35]} 20. Kg2 {[%emt 0:00:30]} Bd7 {[%emt 0:01:50]} 21. Rac1 {[%emt 0:01:33]} h6 {[%emt 0:02:56]} 22. Rc3 {[%emt 0:01:48]} g5 {[%emt 0:04:12]} 23. h4 {[%emt 0:08:20]} g4 {[%emt 0:00:18]} 24. Bd5 {[%emt 0:00:25]} Kg7 {[%emt 0:00:33]} 25. Rhc1 {[%emt 0:02:28]} b6 {[%emt 0:02:39]} 26. Bf4 {[%emt 0:06:14]} (26. Bc6 $16 Bf5 27. a3) 26... Bxf4 {[%emt 0:00:52]} 27. gxf4 {[%emt 0:00:01]} Rbc8 {[%emt 0:00:33]} 28. Rc7 {[%emt 0:01:01]} Rfd8 {[%emt 0:01:36] [#]} 29. Bb3 $1 {[%emt 0:12:01]} Kf6 $2 {[%emt 0:01:35] [#]} (29... Rxc7 $16 30. Rxc7 a5) 30. Rxd7 $18 {[%emt 0:00:29]} 1-0

[Event "POL-chT 2nd League Juniors 2020"]
[Site "Sypniewo"]
[Date "2020.10.30"]
[Round "9.6"]
[White "Wieczorek, Maja"]
[Black "Lajdamik, Anna"]
[Result "0-1"]
[ECO "B16"]
[WhiteElo "1141"]
[BlackElo "1292"]
[Annotator "NA RC"]
[PlyCount "94"]
[EventDate "2020.10.23"]
[EventType "team-tourn"]
[EventCountry "POL"]
[SourceTitle "playchess.com"]
[Source "ChessBase"]
[SourceQuality "1"]
[TimeControl "5400+30"]

1. e4 {[%emt 0:00:00]} c6 {[%emt 0:00:00]} 2. d4 {[%emt 0:00:00]} d5 {[%emt 0:00:18]} 3. Nc3 {[%emt 0:00:01]} dxe4 {[%emt 0:00:41]} 4. Nxe4 {[%emt 0:00:11]} Nf6 {[%emt 0:00:58]} 5. Nxf6+ {[%emt 0:00:18]} gxf6 {[%emt 0:00:11]} 6. Nf3 {[%emt 0:00:54]} Bg4 {[%emt 0:01:48]} 7. Be2 {[%emt 0:00:58]} Qc7 {[%emt 0:02:03]} 8. c4 {[%emt 0:02:21]} e6 {[%emt 0:03:46]} 9. O-O {[%emt 0:02:47]} Nd7 {[%emt 0:03:00]} 10. Nh4 {[%emt 0:03:11]} Bxe2 {[%emt 0:06:04]} 11. Qxe2 {[%emt 0:00:13]} O-O-O {[%emt 0:02:54]} 12. f4 {[%emt 0:05:04]} f5 {[%emt 0:05:04]} 13. c5 {[%emt 0:02:49]} Nf6 {[%emt 0:05:16]} 14. Nf3 {[%emt 0:02:09]} Bg7 {[%emt 0:06:43]} 15. Be3 {[%emt 0:03:41]} Nd5 {[%emt 0:04:48]} 16. Qd2 {[%emt 0:06:37]} h5 {[%emt 0:07:58]} 17. b4 {[%emt 0:02:12]} f6 {[%emt 0:12:28]} 18. Nh4 {[%emt 0:08:13]} Bh6 {[%emt 0:06:41]} 19. Rae1 {[%emt 0:19:44]} Rhg8 {[%emt 0:08:51]} 20. g3 {[%emt 0:11:24]} Rg4 {[%emt 0:04:45]} 21. Ng2 {[%emt 0:00:20]} Rdg8 {[%emt 0:00:16]} 22. a4 {[%emt 0:03:56]} h4 {[%emt 0:01:03]} 23. Bf2 {[%emt 0:08:36]} hxg3 {[%emt 0:01:28]} 24. hxg3 {[%emt 0:04:00]} Nxf4 {[%emt 0:02:27]} 25. Ne3 {[%emt 0:03:36]} Nh3+ {[%emt 0:00:57]} 26. Kg2 {[%emt 0:00:16]} Nxf2 {[%emt 0:01:04]} 27. Kxf2 {[%emt 0:00:29]} Qxg3+ {[%emt 0:00:56]} 28. Ke2 {[%emt 0:00:08]} Bxe3 {[%emt 0:00:17]} 29. Qxe3 {[%emt 0:00:21]} Re4 {[%emt 0:00:10]} 30. Rf3 {[%emt 0:00:57]} Rxe3+ {[%emt 0:00:39]} 31. Kxe3 {[%emt 0:00:20]} Qg5+ {[%emt 0:00:09]} 32. Ke2 {[%emt 0:00:29]} e5 {[%emt 0:00:23]} 33. Ref1 {[%emt 0:01:07]} f4 {[%emt 0:00:29]} 34. b5 {[%emt 0:00:47]} Rh8 {[%emt 0:00:34]} 35. bxc6 {[%emt 0:00:32]} Rh2+ {[%emt 0:00:36]} 36. Kd3 {[%emt 0:00:12]} Qg2 {[%emt 0:00:32]} 37. cxb7+ {[%emt 0:00:51]} Kb8 {[%emt 0:00:46]} 38. R1f2 {[%emt 0:00:58]} Qxf2 {[%emt 0:00:13]} 39. Rxf2 {[%emt 0:00:05]} Rxf2 {[%emt 0:00:05]} 40. c6 {[%emt 0:00:08]} Rf3+ {[%emt 0:00:51]} 41. Ke4 {[%emt 0:00:12]} Rc3 {[%emt 0:00:30]} 42. d5 {[%emt 0:00:49]} Rc4+ {[%emt 0:03:21]} 43. Kf3 {[%emt 0:00:44]} Rd4 {[%emt 0:00:13]} 44. a5 {[%emt 0:00:26]} a6 {[%emt 0:00:14]} 45. Kg4 {[%emt 0:01:26]} Rxd5 {[%emt 0:00:09]} 46. Kf5 {[%emt 0:00:10]} Rd6 {[%emt 0:00:17]} 47. c7+ {[%emt 0:00:36]} Kxc7 {[%emt 0:00:10]} 0-1

[Event "POL-chT 2nd League Juniors 2020"]
[Site "Sypniewo"]
[Date "2020.10.30"]
[Round "9.8"]
[White "Bialik, Nikodem"]
[Black "Niemier, Hubert"]
[Result "0-1"]
[ECO "B11"]
[WhiteElo "1547"]
[BlackElo "1771"]
[Annotator "NA RC"]
[PlyCount "146"]
[EventDate "2020.10.23"]
[EventType "team-tourn"]
[EventCountry "POL"]
[SourceTitle "playchess.com"]
[Source "ChessBase"]
[SourceQuality "1"]
[TimeControl "5400+30"]

1. e4 {[%emt 0:00:00]} c6 {[%emt 0:00:00]} 2. Nf3 {[%emt 0:00:00]} d5 {[%emt 0:00:00]} 3. Nc3 {[%emt 0:00:53]} Bg4 {[%emt 0:00:00]} 4. h3 {[%emt 0:00:36]} Bxf3 {[%emt 0:00:00]} 5. Qxf3 {[%emt 0:00:09]} e6 {[%emt 0:00:12]} 6. a3 {[%emt 0:01:56]} Bc5 {[%emt 0:01:03]} 7. g3 {[%emt 0:02:02]} Nd7 {[%emt 0:00:22]} 8. d3 {[%emt 0:00:43]} d4 {[%emt 0:02:44]} 9. Nb1 {[%emt 0:03:48]} Ne7 {[%emt 0:00:25]} 10. Bg2 {[%emt 0:00:59]} e5 {[%emt 0:00:38]} 11. O-O {[%emt 0:01:39]} O-O {[%emt 0:01:06]} 12. Qe2 {[%emt 0:03:41]} Bd6 {[%emt 0:05:39]} 13. f4 {[%emt 0:01:35]} f6 {[%emt 0:00:09]} 14. f5 {[%emt 0:00:25]} c5 {[%emt 0:00:20]} 15. b3 {[%emt 0:02:35]} b5 {[%emt 0:00:21]} 16. Nd2 {[%emt 0:03:26]} Nb6 {[%emt 0:04:42]} 17. g4 {[%emt 0:00:40]} Nc6 {[%emt 0:01:37]} 18. Rf3 {[%emt 0:01:21]} Kf7 {[%emt 0:04:51]} 19. Rg3 {[%emt 0:01:36]} h6 {[%emt 0:01:02]} 20. h4 {[%emt 0:01:03]} Ke7 {[%emt 0:01:44]} 21. Nf3 {[%emt 0:01:57]} Kd7 {[%emt 0:04:32]} 22. g5 {[%emt 0:01:36]} hxg5 {[%emt 0:00:17]} 23. hxg5 {[%emt 0:00:09]} Qe8 {[%emt 0:07:43]} 24. Nh4 {[%emt 0:04:32]} Ne7 {[%emt 0:00:22]} 25. Bd2 {[%emt 0:03:33]} Rg8 {[%emt 0:00:46]} 26. Kf2 {[%emt 0:01:34]} Rc8 {[%emt 0:00:43]} 27. Rh1 {[%emt 0:03:49]} c4 {[%emt 0:02:45]} 28. bxc4 {[%emt 0:09:25]} bxc4 {[%emt 0:00:24]} 29. Bc1 {[%emt 0:00:19]} cxd3 {[%emt 0:00:56]} 30. Rxd3 {[%emt 0:00:31]} Qf7 {[%emt 0:02:26]} 31. Rhh3 {[%emt 0:04:01]} Qa2 {[%emt 0:08:21]} 32. c3 {[%emt 0:02:27]} Qxe2+ {[%emt 0:01:13]} 33. Kxe2 {[%emt 0:00:07]} Na4 {[%emt 0:01:49]} 34. Bd2 {[%emt 0:02:59]} Nxc3+ {[%emt 0:08:05]} 35. Bxc3 {[%emt 0:00:06]} Rxc3 {[%emt 0:00:07]} 36. Rxc3 {[%emt 0:00:13]} dxc3 {[%emt 0:00:06]} 37. Rxc3 {[%emt 0:00:11]} Rb8 {[%emt 0:00:43]} 38. gxf6 {[%emt 0:02:17]} gxf6 {[%emt 0:02:34]} 39. Kf3 {[%emt 0:00:55]} Nc6 {[%emt 0:01:26]} 40. Bf1 {[%emt 0:01:45]} Nd4+ {[%emt 0:00:13]} 41. Kg4 {[%emt 0:00:35]} Rb1 {[%emt 0:00:40]} 42. Bc4 {[%emt 0:01:35]} Rg1+ {[%emt 0:01:40]} 43. Kh3 {[%emt 0:01:12]} Re1 {[%emt 0:01:30]} 44. Bd5 {[%emt 0:01:03]} Ra1 {[%emt 0:04:31]} 45. Nf3 {[%emt 0:03:54]} Bxa3 {[%emt 0:08:29]} 46. Rd3 {[%emt 0:02:34]} Bc5 {[%emt 0:01:59]} 47. Kg2 {[%emt 0:01:36]} a5 {[%emt 0:00:59]} 48. Rd2 {[%emt 0:07:16]} Ra3 {[%emt 0:03:37]} 49. Ne1 {[%emt 0:04:13]} Rc3 {[%emt 0:02:27]} 50. Nd3 {[%emt 0:01:20]} Bb4 {[%emt 0:00:25]} 51. Nb2 {[%emt 0:01:52]} Kc7 {[%emt 0:05:26]} 52. Rf2 {[%emt 0:01:23]} Nc2 {[%emt 0:01:59]} 53. Na4 {[%emt 0:00:25]} Ne3+ {[%emt 0:00:06]} 54. Kh2 {[%emt 0:01:48]} Ra3 {[%emt 0:05:30]} 55. Rf3 {[%emt 0:03:11]} Nxd5 {[%emt 0:00:19]} 56. Rxa3 {[%emt 0:00:16]} Bxa3 {[%emt 0:00:02]} 57. exd5 {[%emt 0:00:13]} Kd6 {[%emt 0:02:05]} 58. Nb6 {[%emt 0:00:12]} Bc5 {[%emt 0:00:22]} 59. Nc4+ {[%emt 0:00:06]} Kxd5 {[%emt 0:00:05]} 60. Nxa5 {[%emt 0:00:08]} Ke4 {[%emt 0:00:05]} 61. Kg3 {[%emt 0:00:58]} Kxf5 {[%emt 0:00:04]} 62. Nb3 {[%emt 0:00:42]} Bb6 {[%emt 0:00:55]} 63. Kf3 {[%emt 0:00:21]} e4+ {[%emt 0:00:07]} 64. Ke2 {[%emt 0:00:12]} Ke5 {[%emt 0:00:35]} 65. Nd2 {[%emt 0:00:16]} Kd5 {[%emt 0:00:10]} 66. Nf1 {[%emt 0:00:37]} f5 {[%emt 0:00:08]} 67. Nd2 {[%emt 0:01:21]} f4 {[%emt 0:00:22]} 68. Nf1 {[%emt 0:02:15]} f3+ {[%emt 0:00:18]} 69. Kd2 {[%emt 0:00:42]} Bf2 {[%emt 0:00:25]} 70. Nh2 {[%emt 0:00:15]} Kd4 {[%emt 0:01:04]} 71. Kc1 {[%emt 0:01:37]} Ke3 {[%emt 0:00:53]} 72. Kd1 {[%emt 0:00:09]} Kf4 {[%emt 0:00:06]} 73. Nf1 {[%emt 0:01:31]} e3 {[%emt 0:00:09]} 0-1

[Event "POL-chT 2nd League Juniors 2020"]
[Site "Sypniewo"]
[Date "2020.10.30"]
[Round "9.8"]
[White "Wrona, Florian"]
[Black "Borkowski, Szymon"]
[Result "0-1"]
[ECO "B08"]
[WhiteElo "1463"]
[BlackElo "1338"]
[Annotator "NA RC"]
[PlyCount "118"]
[EventDate "2020.10.23"]
[EventType "team-tourn"]
[EventCountry "POL"]
[SourceTitle "playchess.com"]
[Source "ChessBase"]
[SourceQuality "1"]
[TimeControl "5400+30"]

1. e4 {[%emt 0:00:00]} d6 {[%emt 0:00:00]} 2. d4 {[%emt 0:00:00]} Nf6 {[%emt 0:00:00]} 3. Nc3 {[%emt 0:00:00]} g6 {[%emt 0:00:00]} 4. Nf3 {[%emt 0:00:00]} Bg7 {[%emt 0:00:04]} 5. Be2 {[%emt 0:00:20]} O-O {[%emt 0:00:11]} 6. O-O {[%emt 0:00:04]} c6 {[%emt 0:00:07]} 7. Be3 {[%emt 0:00:44]} b5 {[%emt 0:01:00]} 8. a3 {[%emt 0:00:25]} Nbd7 {[%emt 0:02:27]} 9. h3 {[%emt 0:05:28]} Qc7 {[%emt 0:02:02]} 10. Nh2 {[%emt 0:08:02]} Re8 {[%emt 0:02:37]} 11. f4 {[%emt 0:01:30]} e5 {[%emt 0:02:27]} 12. dxe5 {[%emt 0:02:06]} dxe5 {[%emt 0:00:41]} 13. f5 {[%emt 0:00:57]} Bb7 {[%emt 0:09:21]} 14. Bd3 {[%emt 0:05:09]} a6 {[%emt 0:04:39]} 15. Ne2 {[%emt 0:08:25]} c5 {[%emt 0:05:52]} 16. c3 {[%emt 0:04:08]} c4 {[%emt 0:04:26]} 17. Bc2 {[%emt 0:00:05]} Nc5 {[%emt 0:00:50]} 18. Ng3 {[%emt 0:02:28]} Nfxe4 {[%emt 0:03:04]} 19. Nxe4 {[%emt 0:04:21]} Nxe4 {[%emt 0:00:23]} 20. fxg6 {[%emt 0:08:42]} hxg6 {[%emt 0:00:49]} 21. Qg4 {[%emt 0:01:45]} Qc6 {[%emt 0:02:29]} 22. Rae1 {[%emt 0:03:38]} f5 {[%emt 0:08:44]} 23. Bxe4 {[%emt 0:01:01]} Qxe4 {[%emt 0:00:04]} 24. Qxg6 {[%emt 0:02:01]} f4 {[%emt 0:01:58]} 25. Qxe4 {[%emt 0:00:48]} Bxe4 {[%emt 0:00:01]} 26. Bc1 {[%emt 0:11:03]} Bd3 {[%emt 0:02:29]} 27. Rf3 {[%emt 0:00:02]} Rad8 {[%emt 0:12:29]} 28. Ng4 {[%emt 0:02:22]} Bf5 {[%emt 0:03:17]} 29. Nf2 {[%emt 0:02:20]} Bh6 {[%emt 0:04:18]} 30. Ne4 {[%emt 0:02:10]} Kf7 {[%emt 0:01:32]} 31. Rff1 {[%emt 0:13:16]} Bxe4 {[%emt 0:05:57]} 32. Rxe4 {[%emt 0:00:20]} Kf6 {[%emt 0:00:31]} 33. Rfe1 {[%emt 0:04:40]} Bg5 {[%emt 0:02:06]} 34. g3 {[%emt 0:01:32]} fxg3 {[%emt 0:02:10]} 35. Bxg5+ {[%emt 0:00:16]} Kxg5 {[%emt 0:00:01]} 36. Rg4+ {[%emt 0:00:14]} Kf5 {[%emt 0:02:24]} 37. Rf1+ {[%emt 0:01:51]} Ke6 {[%emt 0:00:03]} 38. Rxg3 {[%emt 0:00:06]} Rg8 {[%emt 0:01:59]} 39. Rxg8 {[%emt 0:03:32]} Rxg8+ 40. Kf2 Rd8 {[%emt 0:02:07]} 41. Ke2 {[%emt 0:00:41]} Rd3 {[%emt 0:00:25]} 42. Rf3 {[%emt 0:00:01]} e4 {[%emt 0:00:21]} 43. Re3 {[%emt 0:01:21]} Kf5 {[%emt 0:02:30]} 44. h4 {[%emt 0:00:03]} Kf4 {[%emt 0:01:38]} 45. Rxd3 {[%emt 0:01:46]} exd3+ {[%emt 0:00:24]} 46. Kf2 {[%emt 0:00:15]} Kg4 {[%emt 0:00:05]} 47. h5 {[%emt 0:00:36]} Kxh5 {[%emt 0:00:02]} 48. Kf3 {[%emt 0:00:07]} Kh4 {[%emt 0:00:44]} 49. Kf2 {[%emt 0:00:04]} Kg4 {[%emt 0:00:51]} 50. Ke3 {[%emt 0:00:06]} Kg3 {[%emt 0:00:15]} 51. Kd2 {[%emt 0:00:03]} Kf3 {[%emt 0:00:23]} 52. b4 {[%emt 0:00:46]} Kf2 {[%emt 0:00:28]} 53. Kd1 {[%emt 0:00:17]} Ke3 {[%emt 0:00:20]} 54. a4 {[%emt 0:00:45]} bxa4 {[%emt 0:01:32]} 55. Kc1 {[%emt 0:00:22]} Ke2 {[%emt 0:00:11]} 56. b5 {[%emt 0:00:10]} d2+ {[%emt 0:00:27]} 57. Kb2 {[%emt 0:00:10]} d1=Q {[%emt 0:00:16]} 58. b6 {[%emt 0:00:16]} a3+ {[%emt 0:00:06]} 59. Kxa3 {[%emt 0:00:08]} Qb3# 0-1

[Event "POL-chT 2nd League Juniors 2020"]
[Site "Sypniewo"]
[Date "2020.10.30"]
[Round "9.9"]
[White "Skrzypinski, Jan"]
[Black "Cieply, Krzysztof"]
[Result "1-0"]
[ECO "B31"]
[WhiteElo "1418"]
[BlackElo "1573"]
[Annotator "NA RC"]
[PlyCount "99"]
[EventDate "2020.10.23"]
[EventType "team-tourn"]
[EventCountry "POL"]
[SourceTitle "playchess.com"]
[Source "ChessBase"]
[SourceQuality "1"]
[TimeControl "5400+30"]

1. e4 {[%emt 0:00:00]} c5 {[%emt 0:00:00]} 2. Nf3 {[%emt 0:00:03]} Nc6 {[%emt 0:00:07]} 3. Bb5 {[%emt 0:00:46]} g6 {[%emt 0:00:26]} 4. O-O {[%emt 0:00:36]} Bg7 {[%emt 0:00:16]} 5. c3 {[%emt 0:00:37]} Nf6 6. e5 {[%emt 0:00:53]} Nd5 {[%emt 0:01:39]} 7. d4 {[%emt 0:01:17]} cxd4 {[%emt 0:00:28]} 8. cxd4 {[%emt 0:00:13]} O-O {[%emt 0:00:27]} 9. Nc3 {[%emt 0:01:38]} Nc7 {[%emt 0:00:27]} 10. Ba4 {[%emt 0:00:31]} d5 {[%emt 0:01:03]} 11. h3 {[%emt 0:03:32]} Na5 {[%emt 0:03:00]} 12. Re1 {[%emt 0:05:15]} a6 {[%emt 0:01:46]} 13. Bc2 {[%emt 0:00:36]} Bf5 {[%emt 0:00:45]} 14. Bxf5 {[%emt 0:00:35]} gxf5 {[%emt 0:00:06]} 15. Nh4 {[%emt 0:00:20]} e6 {[%emt 0:00:07]} 16. Qh5 {[%emt 0:00:42]} f6 {[%emt 0:00:54]} 17. Bh6 {[%emt 0:01:09]} Rf7 {[%emt 0:00:24]} 18. f4 {[%emt 0:08:57]} Nc6 {[%emt 0:01:05]} 19. Rad1 {[%emt 0:02:31]} fxe5 {[%emt 0:01:23]} 20. fxe5 {[%emt 0:00:13]} Bxh6 {[%emt 0:01:30]} 21. Qxh6 {[%emt 0:00:09]} Qf8 {[%emt 0:00:12]} 22. Qh5 {[%emt 0:01:07]} Rg7 {[%emt 0:00:31]} 23. Re3 {[%emt 0:09:55]} Qb4 {[%emt 0:00:19]} 24. Rdd3 {[%emt 0:02:25]} Rf8 {[%emt 0:03:09]} 25. Rg3 {[%emt 0:11:08]} Rff7 {[%emt 0:00:18]} 26. Rxg7+ {[%emt 0:01:03]} Rxg7 {[%emt 0:00:05]} 27. Nxf5 {[%emt 0:01:33]} exf5 {[%emt 0:01:02]} 28. Qxf5 {[%emt 0:00:58]} Qf8 {[%emt 0:00:54]} 29. Qxf8+ {[%emt 0:08:45]} Kxf8 {[%emt 0:00:07]} 30. Ne2 {[%emt 0:00:21]} Ne6 {[%emt 0:03:45]} 31. a3 {[%emt 0:01:24]} Rf7 {[%emt 0:01:40]} 32. g3 {[%emt 0:00:25]} Kg7 {[%emt 0:05:15]} 33. Kg2 {[%emt 0:01:06]} Ncxd4 {[%emt 0:02:44]} 34. Nxd4 {[%emt 0:00:13]} Nxd4 {[%emt 0:00:42]} 35. Rxd4 {[%emt 0:00:04]} Re7 {[%emt 0:00:09]} 36. Rxd5 {[%emt 0:00:05]} Kf7 {[%emt 0:00:04]} 37. Kf3 {[%emt 0:00:21]} Rc7 {[%emt 0:00:05]} 38. Rd3 {[%emt 0:00:16]} Ke6 {[%emt 0:01:18]} 39. Ke4 {[%emt 0:00:16]} Rc2 {[%emt 0:00:07]} 40. Rd6+ {[%emt 0:00:11]} Kf7 {[%emt 0:00:10]} 41. Rb6 {[%emt 0:00:13]} Rc7 {[%emt 0:00:06]} 42. Kf5 {[%emt 0:00:10]} Re7 {[%emt 0:00:17]} 43. h4 {[%emt 0:00:19]} Rc7 {[%emt 0:00:10]} 44. g4 {[%emt 0:00:08]} Re7 {[%emt 0:00:05]} 45. g5 {[%emt 0:00:05]} Rc7 {[%emt 0:00:04]} 46. h5 {[%emt 0:00:03]} Re7 {[%emt 0:00:10]} 47. Rf6+ {[%emt 0:00:09]} Kg7 {[%emt 0:00:07]} 48. Rd6 {[%emt 0:00:22]} Rf7+ {[%emt 0:00:14]} 49. Ke6 {[%emt 0:00:11]} Rc7 {[%emt 0:00:16]} 50. Rd7+ {[%emt 0:00:08]} 1-0

[Event "POL-chT 2nd League Juniors 2020"]
[Site "Sypniewo"]
[Date "2020.10.30"]
[Round "9.9"]
[White "Mossakowski, Jakub"]
[Black "Duda, Szymon"]
[Result "1/2-1/2"]
[ECO "D46"]
[WhiteElo "1302"]
[BlackElo "1529"]
[Annotator "NA RC"]
[PlyCount "102"]
[EventDate "2020.10.23"]
[EventType "team-tourn"]
[EventCountry "POL"]
[SourceTitle "playchess.com"]
[Source "ChessBase"]
[SourceQuality "1"]
[TimeControl "5400+30"]

1. Nf3 {[%emt 0:00:00]} Nf6 {[%emt 0:00:00]} 2. d4 {[%emt 0:00:00]} d5 {[%emt 0:00:20]} 3. c4 {[%emt 0:00:00]} c6 {[%emt 0:00:07]} 4. e3 {[%emt 0:00:16]} e6 {[%emt 0:02:15]} 5. Nc3 {[%emt 0:00:24]} Bd6 {[%emt 0:00:16]} 6. Bd3 {[%emt 0:00:25]} Nbd7 {[%emt 0:00:29]} 7. O-O {[%emt 0:01:06]} O-O {[%emt 0:00:16]} 8. e4 {[%emt 0:01:00]} dxe4 9. Nxe4 {[%emt 0:00:14]} Nxe4 {[%emt 0:01:13]} 10. Bxe4 {[%emt 0:00:11]} h6 {[%emt 0:00:28]} 11. h3 {[%emt 0:04:29]} Nf6 {[%emt 0:01:06]} 12. Bd3 {[%emt 0:00:25]} c5 {[%emt 0:01:18]} 13. dxc5 {[%emt 0:01:31]} Bxc5 {[%emt 0:00:21]} 14. Bf4 {[%emt 0:00:29]} b6 {[%emt 0:01:43]} 15. a3 {[%emt 0:00:40]} Bb7 {[%emt 0:05:50]} 16. b4 {[%emt 0:01:02]} Be7 {[%emt 0:00:46]} 17. Qe2 {[%emt 0:02:29]} Bd6 {[%emt 0:02:33]} 18. Be3 {[%emt 0:01:50]} Qe7 {[%emt 0:02:02]} 19. Rac1 {[%emt 0:01:18]} Rac8 {[%emt 0:00:39]} 20. Rfd1 {[%emt 0:00:51]} Nh5 {[%emt 0:13:39]} 21. Nd2 {[%emt 0:16:53]} Qh4 22. Nf3 {[%emt 0:04:17]} Qe7 {[%emt 0:01:40]} 23. Nd2 {[%emt 0:00:36]} Qh4 {[%emt 0:01:11]} 24. Qg4 {[%emt 0:08:44]} Qxg4 {[%emt 0:02:37]} 25. hxg4 {[%emt 0:00:09]} Nf4 26. Bxf4 {[%emt 0:01:35]} Bxf4 {[%emt 0:02:34]} 27. Rc3 {[%emt 0:04:52]} Rfd8 {[%emt 0:02:52]} 28. Nf3 {[%emt 0:01:52]} Ba6 {[%emt 0:08:35]} 29. g3 {[%emt 0:03:05]} Bg5 {[%emt 0:02:53]} 30. Nxg5 {[%emt 0:02:11]} hxg5 {[%emt 0:00:30]} 31. c5 {[%emt 0:04:19]} Rxd3 {[%emt 0:02:16]} 32. Rdxd3 {[%emt 0:01:09]} Bxd3 {[%emt 0:00:13]} 33. Rxd3 {[%emt 0:00:03]} bxc5 {[%emt 0:00:13]} 34. bxc5 {[%emt 0:02:08]} Rxc5 {[%emt 0:01:04]} 35. Rd8+ {[%emt 0:00:05]} Kh7 {[%emt 0:00:08]} 36. Rd7 {[%emt 0:00:12]} Ra5 {[%emt 0:01:08]} 37. Rxf7 {[%emt 0:00:21]} Rxa3 {[%emt 0:00:13]} 38. Re7 {[%emt 0:00:23]} Ra6 {[%emt 0:00:10]} 39. Kg2 {[%emt 0:00:49]} Kg6 {[%emt 0:00:10]} 40. Rb7 {[%emt 0:02:43]} Kf6 {[%emt 0:00:53]} 41. Rc7 {[%emt 0:00:48]} Ra2 {[%emt 0:00:37]} 42. Rb7 {[%emt 0:00:48]} a5 {[%emt 0:00:41]} 43. Ra7 {[%emt 0:00:38]} a4 {[%emt 0:00:14]} 44. Ra6 {[%emt 0:00:44]} a3 {[%emt 0:01:02]} 45. Ra5 {[%emt 0:00:27]} Ra1 {[%emt 0:01:35]} 46. Ra8 {[%emt 0:00:23]} a2 {[%emt 0:00:39]} 47. Ra6 {[%emt 0:00:05]} Ke5 {[%emt 0:01:08]} 48. Ra5+ {[%emt 0:00:12]} Kd4 {[%emt 0:02:05]} 49. Ra4+ {[%emt 0:00:12]} Kc3 {[%emt 0:00:33]} 50. Ra8 {[%emt 0:00:34]} Kb2 {[%emt 0:03:31]} 51. Rb8+ {[%emt 0:00:14]} Kc1 1/2-1/2